bitfinex/quotes_SOLUSD_20250819
["timestamp","ask_amount","ask_price","bid_price","bid_amount"]
[1755629134536,11.23430792,177.47,177.43,0.71]
[1755629134717,11.23430792,177.44,177.4,42.17]
[1755629134908,11.23430792,177.43,177.36,55.09559401]
[1755629135108,11.23430792,177.44,177.41,0.71]
[1755629135338,11.23430792,177.42,177.38,0.71]
[1755629135541,11.23430792,177.41,177.38,0.71]
[1755629135711,0.68,177.44,177.36,41.5]
[1755629135916,11.23430792,177.42,177.37,0.71]
[1755629136120,11.23430792,177.42,177.36,52.73430792]
[1755629136121,11.23430792,177.41,177.36,41.5]
[1755629136329,11.23430792,177.39,177.36,41.5]
[1755629136628,11.23430792,177.37,177.36,0.06]
[1755629137351,0.68,177.41,177.36,0.06]
[1755629137352,11.23430792,177.38,177.36,0.06]
[1755629137518,11.23430792,177.39,177.36,0.06]
[1755629138344,31.63543626,177.45,177.36,0.06]
[1755629138345,11.23430792,177.37,177.36,0.06]
[1755629138723,11.91430792,177.37,177.36,0.06]
[1755629139438,11.23430792,177.37,177.36,0.06]
[1755629140117,0.68,177.39,177.36,0.06]
[1755629140327,11.23430792,177.37,177.36,0.06]
[1755629141123,11.23430792,177.39,177.36,0.06]
[1755629141334,0.68,177.42,177.36,0.77]
[1755629141522,11.23430792,177.4,177.36,0.77]
[1755629141732,11.23430792,177.39,177.36,0.06]
[1755629141920,11.234308,177.41,177.36,0.06]
[1755629142147,11.23430792,177.41,177.37,0.71]
[1755629142444,0.68,177.42,177.36,0.06]
[1755629142445,11.23430792,177.39,177.36,0.06]
[1755629143141,11.23430792,177.38,177.36,0.06]
[1755629143546,11.23430792,177.37,177.36,0.06]
[1755629143926,0.68,177.39,177.36,0.06]
[1755629144133,11.23430792,177.37,177.36,0.06]
[1755629144444,11.23430792,177.38,177.36,0.06]
[1755629145450,11.91430792,177.37,177.36,0.06]
[1755629145622,11.23430792,177.37,177.36,0.06]
[1755629146429,11.91430792,177.37,177.36,0.06]
[1755629147724,16.44616963,177.37,177.25,0.71]
[1755629147930,11.23430792,177.29,177.25,0.71]
[1755629148548,0.68,177.32,177.25,0.71]
[1755629148549,11.23430792,177.28,177.25,0.71]
[1755629148749,11.23430792,177.27,177.25,0.71]
[1755629149254,11.23430792,177.28,177.23,11.23430792]
[1755629149427,11.23430792,177.28,177.24,0.71]
[1755629149852,11.23430792,177.31,177.26,11.23430792]
[1755629150035,0.68,177.34,177.21,0.14216157]
[1755629150036,11.234308,177.4,177.29,11.23430792]
[1755629150233,26.0,177.36,177.29,11.94430792]
[1755629150551,0.68,177.37,177.3,11.23430792]
[1755629150749,11.23430792,177.37,177.31,0.71]
[1755629151048,11.23430792,177.35,177.31,0.71]
[1755629151257,11.23430792,177.39,177.34,11.23430792]
[1755629151559,0.68,177.45,177.36,11.23430792]
[1755629151770,11.234308,177.41,177.4,11.23430792]
[1755629151981,11.23430792,177.45,177.4,11.23430792]
[1755629152267,11.23430792,177.45,177.41,0.71]
[1755629152649,11.23430792,177.46,177.41,0.71]
[1755629152846,0.03,177.47,177.42,11.94430792]
[1755629152847,11.26430792,177.47,177.42,11.94430792]
[1755629153165,11.23430792,177.45,177.4,11.23430792]
[1755629153349,11.23430792,177.45,177.39,11.94430792]
[1755629153550,11.23430792,177.42,177.36,0.71]
[1755629153744,11.23430792,177.41,177.36,0.71]
[1755629153943,11.23430792,177.39,177.33,11.94430792]
[1755629154152,0.68,177.44,177.35,11.23430792]
[1755629154465,11.23430792,177.39,177.34,0.71]
[1755629154662,11.23430792,177.39,177.28,86.67615727]
[1755629154663,11.23430792,177.4,177.35,11.94430792]
[1755629154845,11.23430792,177.4,177.36,0.71]
[1755629155045,0.68,177.44,177.36,11.23430792]
[1755629155251,11.23430792,177.41,177.35,11.23430792]
[1755629155570,11.23430792,177.4,177.35,0.71]
[1755629155736,11.23430792,177.39,177.35,0.71]
[1755629155936,11.23430792,177.38,177.33,0.71]
[1755629156372,11.23430792,177.39,177.33,11.23430792]
[1755629156544,11.23430792,177.39,177.34,0.71]
[1755629157249,0.03,177.42,177.38,11.23430792]
[1755629157474,0.03,177.42,177.4,11.23430792]
[1755629157667,0.03,177.42,177.41,0.71]
[1755629157847,0.03,177.42,177.4,0.71]
[1755629158049,0.03,177.42,177.4,11.94430792]
[1755629159165,0.03,177.42,177.4,11.23430792]
[1755629159755,0.03,177.42,177.41,11.23430792]
[1755629159947,0.03,177.42,177.41,11.94430792]
[1755629160268,0.03,177.42,177.41,0.71]
[1755629160464,0.03,177.42,177.41,11.94430792]
[1755629160678,0.03,177.44,177.41,11.94430792]
[1755629160986,0.03,177.47,177.43,11.23430792]
[1755629161267,0.03,177.47,177.42,14.44775558]
[1755629161268,0.03,177.47,177.46,11.37646949]
[1755629161471,0.03,177.49,177.47,0.14216157]
[1755629161641,0.03,177.49,177.48,12.08646949]
[1755629161841,0.03,177.49,177.44,41.4]
[1755629162147,0.03,177.49,177.48,11.23430792]
[1755629162678,0.03,177.49,177.46,11.23430792]
[1755629162970,0.03,177.49,177.47,11.23430792]
[1755629163268,0.03,177.49,177.48,11.23430792]
[1755629163441,0.03,177.49,177.48,12.08646949]
[1755629164499,0.03,177.49,177.48,11.94430792]
[1755629164654,0.03,177.49,177.45,12.07646949]
[1755629164983,0.03,177.49,177.45,0.84216157]
[1755629165155,0.03,177.49,177.47,11.23430792]
[1755629165357,0.03,177.49,177.48,11.23430792]
[1755629165752,0.03,177.49,177.48,11.93430792]
[1755629167406,0.03,177.49,177.46,0.7]
[1755629167560,0.03,177.49,177.45,6.23442141]
[1755629167756,0.03,177.49,177.47,11.23430792]
[1755629168002,0.03,177.49,177.46,0.7]
[1755629168191,0.03,177.49,177.44,41.4]
[1755629168362,0.03,177.49,177.45,11.23430792]
[1755629168814,11.95430792,177.48,177.44,41.4]
[1755629169113,11.23430792,177.48,177.44,41.4]
[1755629169611,0.03,177.49,177.44,53.33430792]
[1755629169808,0.03,177.49,177.45,0.7]
[1755629170017,0.03,177.49,177.44,41.4]
[1755629170018,11.98430792,177.49,177.44,41.4]
[1755629170172,11.95430792,177.48,177.44,41.4]
[1755629170506,11.26430792,177.49,177.44,53.33430792]
[1755629170716,11.23430792,177.48,177.44,41.4]
[1755629170996,11.98430792,177.49,177.44,41.4]
[1755629171206,11.23430792,177.47,177.41,0.7]
[1755629171432,11.26430792,177.49,177.43,11.23430792]
[1755629171801,11.23430792,177.48,177.43,11.23430792]
[1755629172198,11.23430792,177.48,177.43,11.93430792]
[1755629172516,11.26430792,177.49,177.44,0.7]
[1755629172718,0.03,177.49,177.44,11.23430792]
[1755629172915,0.03,177.49,177.44,11.93430792]
[1755629173095,0.03,177.49,177.45,11.23430792]
[1755629173295,0.03,177.49,177.46,11.93430792]
[1755629173526,0.03,177.49,177.46,0.7]
[1755629174428,11.23430792,177.48,177.43,11.93430792]
[1755629174925,11.26430792,177.49,177.44,11.93430792]
[1755629175428,0.03,177.49,177.46,11.23430792]
[1755629175634,0.03,177.49,177.47,0.7]
[1755629176515,0.03,177.49,177.48,11.93430792]
[1755629176715,0.03,177.49,177.48,12.07646949]
[1755629178208,0.03,177.49,177.48,25.6720635]
[1755629178408,0.03,177.51,177.49,0.14216157]
[1755629178607,0.03,177.51,177.5,25.6720635]
[1755629178796,0.03,177.51,177.5,12.07646949]
[1755629178997,0.03,177.51,177.5,0.7]
[1755629179220,0.03,177.51,177.5,53.27430792]
[1755629179532,0.03,177.51,177.5,41.34]
[1755629179723,0.03,177.51,177.5,52.57430792]
[1755629179926,0.03,177.51,177.5,53.27430792]
[1755629180604,0.03,177.51,177.5,42.04]
[1755629181211,0.03,177.51,177.5,41.34]
[1755629182425,0.03,177.51,177.5,53.41646949]
[1755629183600,0.03,177.51,177.5,67.0120635]
[1755629188409,0.03,177.55,177.51,13.73775558]
[1755629188615,0.03,177.55,177.54,24.9720635]
[1755629188814,0.03,177.55,177.54,66.2120635]
[1755629189032,0.03,177.55,177.54,66.9120635]
[1755629191533,0.03,177.57,177.55,13.73775558]
[1755629191724,0.03,177.57,177.56,66.1920635]
[1755629191917,0.03,177.57,177.56,66.8920635]
[1755629193037,0.03,177.57,177.56,13.73775558]
[1755629193239,0.03,177.57,177.56,66.8320635]
[1755629193424,0.03,177.57,177.56,54.89775558]
[1755629193615,0.03,177.57,177.52,26.0]
[1755629193816,0.72,177.56,177.54,11.23430792]
[1755629194019,0.03,177.57,177.56,13.59559401]
[1755629194235,0.03,177.57,177.56,0.14216157]
[1755629194621,0.72,177.57,177.56,0.14216157]
[1755629194942,0.03,177.57,177.56,24.9720635]
[1755629196751,0.03,177.57,177.56,25.6620635]
[1755629197916,0.03,177.57,177.56,30.20918529]
[1755629198141,0.03,177.57,177.56,25.6620635]
[1755629199355,0.03,177.57,177.56,57.29396257]
[1755629199724,0.03,177.59,177.56,57.29396257]
[1755629199725,0.03,177.59,177.58,39.73775558]
[1755629199921,0.03,177.59,177.58,92.1520635]
[1755629200218,0.03,177.59,177.58,92.8420635]
[1755629201258,0.03,177.59,177.58,24.82990193]
[1755629201465,0.03,177.59,177.58,66.1120635]
[1755629201673,0.72,177.59,177.58,41.14]
[1755629201886,0.03,177.59,177.58,41.14]
[1755629202176,0.72,177.59,177.58,41.14]
[1755629202344,0.03,177.59,177.58,65.96990193]
[1755629202540,0.03,177.59,177.58,52.51646949]
[1755629202757,0.03,177.59,177.58,41.14]
[1755629203046,0.72,177.59,177.58,41.14]
[1755629206652,0.03,177.59,177.58,52.51646949]
[1755629206950,0.03,177.59,177.58,53.20646949]
[1755629207152,0.03,177.59,177.58,52.51646949]
[1755629207778,0.03,177.59,177.58,53.20646949]
[1755629207953,0.03,177.59,177.58,66.8020635]
[1755629210175,0.03,177.59,177.58,13.73775558]
[1755629210377,0.03,177.59,177.58,54.83775558]
[1755629210759,0.03,177.59,177.53,2.946763]
[1755629211077,0.69,177.58,177.54,54.69559401]
[1755629211588,0.69,177.58,177.54,41.1]
[1755629211741,11.92430792,177.57,177.54,41.1]
[1755629211946,11.23430792,177.55,177.54,41.1]
[1755629212179,0.69,177.58,177.54,41.1]
[1755629212479,11.23430792,177.56,177.54,41.1]
[1755629212653,0.69,177.55,177.54,41.1]
[1755629213457,11.92430792,177.57,177.54,41.1]
[1755629214267,0.69,177.57,177.54,41.1]
[1755629214672,11.92430792,177.57,177.54,41.1]
[1755629214979,0.69,177.56,177.54,41.1]
[1755629215553,11.23430792,177.57,177.54,41.1]
[1755629215968,0.69,177.56,177.54,41.1]
[1755629216481,11.23430792,177.57,177.54,41.1]
[1755629216670,11.92430792,177.57,177.54,41.1]
[1755629216874,11.23430792,177.58,177.54,41.1]
[1755629217265,0.03,177.59,177.54,41.1]
[1755629217466,11.23430792,177.57,177.55,41.06]
[1755629218470,0.03,177.59,177.55,41.06]
[1755629218670,11.23430792,177.58,177.55,41.06]
[1755629219693,0.03,177.59,177.56,11.92430792]
[1755629219895,0.03,177.59,177.58,11.37646949]
[1755629220185,0.03,177.59,177.58,24.9720635]
[1755629220883,0.03,177.61,177.59,0.14216157]
[1755629221075,0.03,177.63,177.61,13.59559401]
[1755629221280,0.03,177.63,177.62,66.7820635]
[1755629223113,0.2,177.65,177.64,39.73775558]
[1755629223279,0.2,177.73,177.66,0.14216157]
[1755629223475,0.2,177.73,177.72,11.23430792]
[1755629223671,0.2,177.73,177.72,53.20646949]
[1755629223986,0.2,177.73,177.72,66.8020635]
[1755629225590,0.2,177.73,177.72,55.56775558]
[1755629225901,0.2,177.73,177.72,72.43339317]
[1755629226698,0.2,177.73,177.72,58.14779916]
[1755629227062,0.2,177.73,177.72,17.00779916]
[1755629227266,0.2,177.73,177.72,46.73132967]
[1755629227791,0.2,177.73,177.72,46.87349124]
[1755629228163,0.2,177.73,177.72,41.1]
[1755629228164,0.91,177.73,177.72,41.1]
[1755629228575,12.14430792,177.73,177.68,5.57288591]
[1755629228766,0.71,177.72,177.64,26.0]
[1755629228972,11.23430792,177.71,177.66,11.23430792]
[1755629229276,0.71,177.7,177.67,41.16]
[1755629229479,0.71,177.69,177.67,41.16]
[1755629229790,0.71,177.68,177.67,41.16]
[1755629230294,11.94430792,177.7,177.67,41.16]
[1755629230589,0.71,177.69,177.67,41.16]
[1755629230792,11.23430792,177.7,177.67,41.16]
[1755629231293,0.71,177.7,177.67,41.16]
[1755629231606,11.23430792,177.68,177.67,41.16]
[1755629231791,11.94430792,177.68,177.65,41.14]
[1755629232097,11.94430792,177.68,177.64,5.86561473]
[1755629232098,11.23430792,177.66,177.58,14.27559401]
[1755629232416,11.23430792,177.62,177.57,0.06]
[1755629232575,11.23430792,177.62,177.58,41.16]
[1755629232769,0.71,177.61,177.58,41.16]
[1755629233983,11.23430792,177.62,177.58,41.16]
[1755629234488,11.23430792,177.59,177.57,0.06]
[1755629234699,11.23430792,177.58,177.57,0.06]
[1755629235209,11.23430792,177.59,177.57,0.06]
[1755629235495,11.94430792,177.58,177.57,0.06]
[1755629235700,11.23430792,177.59,177.57,0.06]
[1755629236077,0.71,177.63,177.57,0.06]
[1755629236293,11.94430792,177.63,177.58,11.23430792]
[1755629236483,11.94430792,177.63,177.58,52.37430792]
[1755629236680,11.94430792,177.63,177.58,53.05430792]
[1755629236892,0.71,177.63,177.59,0.14216157]
[1755629237197,11.23430792,177.64,177.59,0.14216157]
[1755629237397,11.23430792,177.62,177.58,41.14]
[1755629237601,26.0,177.65,177.58,41.14]
[1755629237602,26.0,177.65,177.59,12.05646949]
[1755629237777,11.23430792,177.64,177.59,12.05646949]
[1755629239303,26.71,177.66,177.59,12.05646949]
[1755629239611,11.23430792,177.65,177.59,12.05646949]
[1755629240003,11.23430792,177.65,177.6,11.23430792]
[1755629240313,11.23430792,177.65,177.6,11.91430792]
[1755629240491,11.94430792,177.66,177.61,0.68]
[1755629240692,11.23430792,177.64,177.59,0.14216157]
[1755629241125,0.71,177.63,177.59,0.14216157]
[1755629241331,11.23430792,177.62,177.58,41.14]
[1755629241623,11.94430792,177.62,177.58,41.14]
[1755629242294,11.23430792,177.59,177.57,0.06]
[1755629242496,0.71,177.61,177.57,0.06]
[1755629242713,11.23430792,177.58,177.57,0.06]
[1755629243220,11.94430792,177.58,177.57,0.06]
[1755629246522,11.23430792,177.58,177.57,0.06]
[1755629246831,11.54430792,177.58,177.57,0.06]
[1755629248334,11.23430792,177.6,177.57,0.06]
[1755629248507,26.0,177.62,177.57,0.06]
[1755629248822,2.257782,177.6,177.57,0.06]
[1755629249227,2.257782,177.6,177.58,0.68]
[1755629249525,2.257782,177.6,177.58,11.91430792]
[1755629249736,11.23430792,177.63,177.58,11.91430792]
[1755629250097,11.23430792,177.63,177.59,0.68]
[1755629251298,11.23430792,177.63,177.62,1.406229]
[1755629251492,142.914308,177.65,177.62,1.406229]
[1755629251741,131.0,177.65,177.62,1.406229]
[1755629252092,0.03,177.66,177.62,12.64053692]
[1755629252403,0.03,177.66,177.63,11.91430792]
[1755629252911,0.03,177.66,177.65,11.23430792]
[1755629253519,0.03,177.66,177.65,11.91430792]
[1755629256603,0.03,177.66,177.65,0.68]
[1755629257130,0.03,177.66,177.65,11.91430792]
[1755629258526,0.03,177.66,177.62,0.68]
[1755629258826,0.03,177.66,177.62,26.68]
[1755629259029,11.26430792,177.66,177.61,13.59559401]
[1755629259209,11.26430792,177.66,177.61,14.27559401]
[1755629259622,0.03,177.66,177.62,11.37646949]
[1755629259930,11.23430792,177.63,177.58,0.68]
[1755629260113,11.23430792,177.62,177.57,0.06]
[1755629260320,11.23430792,177.62,177.57,11.97430792]
[1755629260903,11.23430792,177.63,177.58,0.82216157]
[1755629261112,0.7,177.64,177.59,0.06]
[1755629261335,11.23430792,177.63,177.59,0.06]
[1755629261544,11.23430792,177.62,177.59,0.06]
[1755629261759,11.23430792,177.63,177.59,0.06]
[1755629262050,11.26430792,177.66,177.61,11.23430792]
[1755629262346,11.26430792,177.66,177.61,11.91430792]
[1755629262757,0.03,177.66,177.62,0.68]
[1755629262914,0.03,177.66,177.62,2.086229]
[1755629263340,11.23430792,177.64,177.62,1.406229]
[1755629263724,11.93430792,177.64,177.62,1.406229]
[1755629264040,11.93430792,177.63,177.62,1.406229]
[1755629264745,11.23430792,177.63,177.62,1.406229]
[1755629265319,11.93430792,177.63,177.62,1.406229]
[1755629266421,0.7,177.63,177.62,1.406229]
[1755629266639,11.23430792,177.63,177.62,1.406229]
[1755629266954,11.23430792,177.64,177.62,1.406229]
[1755629267324,11.23430792,177.65,177.59,11.97430792]
[1755629267543,11.23430792,177.64,177.59,0.74]
[1755629268145,11.23430792,177.63,177.59,0.74]
[1755629268344,11.23430792,177.61,177.59,0.06]
[1755629268532,11.23430792,177.6,177.59,0.06]
[1755629268937,11.264308,177.66,177.59,0.06]
[1755629268938,11.23430792,177.61,177.59,0.06]
[1755629269459,11.23430792,177.6,177.59,0.06]
[1755629269746,11.23430792,177.61,177.59,0.06]
[1755629270324,11.23430792,177.63,177.59,0.74]
[1755629270743,11.23430792,177.62,177.59,0.06]
[1755629270944,11.23430792,177.61,177.59,0.06]
[1755629271362,11.23430792,177.62,177.59,0.06]
[1755629271855,11.23430792,177.62,177.6,1.406387]
[1755629273065,11.23430792,177.63,177.6,1.406387]
[1755629273352,11.23430792,177.65,177.6,2.086387]
[1755629274233,11.23430792,177.64,177.6,1.406387]
[1755629274442,11.23430792,177.63,177.6,1.406387]
[1755629275034,11.23430792,177.62,177.6,1.406387]
[1755629275831,11.93430792,177.61,177.6,1.406387]
[1755629276051,0.7,177.61,177.6,1.406387]
[1755629276248,11.93430792,177.61,177.6,1.406387]
[1755629276658,11.23430792,177.61,177.6,1.406387]
[1755629276843,2.257273,177.64,177.6,1.406387]
[1755629277045,0.03,177.66,177.6,1.406387]
[1755629277046,11.23430792,177.62,177.6,1.406387]
[1755629277241,11.23430792,177.61,177.6,1.406387]
[1755629277543,11.93430792,177.62,177.6,1.406387]
[1755629277759,11.23430792,177.61,177.6,1.406387]
[1755629278345,11.93430792,177.61,177.6,1.406387]
[1755629278757,2.257273,177.64,177.6,1.406387]
[1755629278758,11.23430792,177.62,177.6,1.406387]
[1755629279169,0.7,177.63,177.6,1.406387]
[1755629279358,11.23430792,177.61,177.6,1.406387]
[1755629280961,2.257145,177.64,177.6,1.406387]
[1755629281162,11.23430792,177.62,177.6,1.406387]
[1755629281476,11.26430792,177.66,177.61,0.68]
[1755629281662,11.23430792,177.64,177.6,1.406387]
[1755629281858,0.7,177.65,177.6,1.406387]
[1755629282078,11.23430792,177.64,177.61,0.68]
[1755629282250,11.23430792,177.65,177.61,0.68]
[1755629282778,0.03,177.66,177.63,11.23430792]
[1755629282979,0.03,177.66,177.64,11.23430792]
[1755629283187,0.03,177.66,177.65,11.23430792]
[1755629283490,0.03,177.66,177.65,25.6520635]
[1755629284789,0.03,177.67,177.66,39.73775558]
[1755629285084,0.03,177.69,177.66,83.51510045]
[1755629285271,0.03,177.69,177.67,50.9720635]
[1755629285456,0.03,177.69,177.67,51.6920635]
[1755629285878,0.03,177.69,177.67,0.72]
[1755629286581,0.03,177.69,177.66,26.0]
[1755629286765,0.03,177.69,177.67,11.95430792]
[1755629286966,0.03,177.69,177.67,12.09646949]
[1755629288783,0.03,177.69,177.67,0.14216157]
[1755629288978,0.03,177.69,177.66,26.0]
[1755629289587,0.03,177.69,177.66,26.72]
[1755629289782,0.03,177.69,177.65,0.14216157]
[1755629290087,11.23430792,177.66,177.6,1.406387]
[1755629290249,11.23430792,177.65,177.6,1.406387]
[1755629290457,0.03,177.69,177.6,1.406387]
[1755629290458,11.23430792,177.63,177.6,1.406387]
[1755629290985,0.03,177.69,177.6,1.406387]
[1755629290986,11.23430792,177.64,177.6,1.406387]
[1755629291195,11.23430792,177.63,177.6,1.406387]
[1755629291359,11.23430792,177.62,177.6,1.406387]
[1755629291758,0.67,177.63,177.6,1.406387]
[1755629291978,11.23430792,177.61,177.6,1.406387]
[1755629292282,11.90430792,177.61,177.6,1.406387]
[1755629293166,37.90430792,177.61,177.6,1.406387]
[1755629293381,37.90430792,177.61,177.59,0.06]
[1755629293560,11.90430792,177.6,177.59,0.06]
[1755629294070,11.90430792,177.6,177.58,0.06]
[1755629294265,26.0,177.61,177.57,0.06]
[1755629294266,11.90430792,177.59,177.57,0.06]
[1755629294472,37.23430792,177.58,177.57,0.06]
[1755629294672,37.90430792,177.58,177.57,0.06]
[1755629295207,81.10259992,177.58,177.57,0.06]
[1755629295380,40.16259992,177.58,177.57,0.06]
[1755629296596,0.67,177.58,177.57,0.06]
[1755629296893,14.16221792,177.58,177.57,0.06]
[1755629298087,13.49221792,177.58,177.57,0.06]
[1755629298301,14.16221792,177.58,177.57,0.06]
[1755629299476,40.16221792,177.58,177.57,0.06]
[1755629300164,40.16221792,177.58,177.56,0.06]
[1755629300366,37.90430792,177.57,177.51,0.06]
[1755629300588,11.23430792,177.54,177.51,0.06]
[1755629300883,11.23430792,177.53,177.51,0.06]
[1755629301078,11.90430792,177.53,177.51,0.06]
[1755629302375,14.16310992,177.53,177.51,0.06]
[1755629302597,25.39741784,177.53,177.51,0.06]
[1755629302796,26.0,177.49,177.44,0.06]
[1755629303102,78.27430792,177.49,177.44,0.06]
[1755629303416,78.94430792,177.49,177.44,0.06]
[1755629303616,11.23430792,177.45,177.44,0.06]
[1755629303818,52.29430792,177.45,177.44,0.06]
[1755629303978,52.96430792,177.45,177.44,0.06]
[1755629305697,41.73,177.45,177.44,0.06]
[1755629305999,52.96430792,177.45,177.44,0.06]
[1755629306908,52.29430792,177.45,177.44,0.06]
[1755629308594,11.23430792,177.45,177.44,0.06]
[1755629308804,28.259823,177.49,177.44,0.78]
[1755629308805,52.25430792,177.47,177.44,0.78]
[1755629309006,28.259823,177.49,177.44,0.78]
[1755629309206,41.04,177.48,177.44,0.78]
[1755629309500,11.23430792,177.46,177.44,0.78]
[1755629310290,11.23430792,177.45,177.44,0.06]
[1755629311287,52.92430792,177.45,177.44,0.06]
[1755629311813,52.92430792,177.45,177.41,0.06]
[1755629311814,13.73775558,177.44,177.41,0.06]
[1755629312001,37.23430792,177.42,177.41,0.06]
[1755629312182,78.25430792,177.42,177.41,0.06]
[1755629312499,78.92430792,177.42,177.41,0.06]
[1755629313909,81.18489692,177.42,177.41,0.06]
[1755629314882,40.16489692,177.42,177.41,0.06]
[1755629315087,81.18489692,177.42,177.41,0.06]
[1755629316401,94.78049093,177.42,177.41,0.06]
[1755629317825,54.49489692,177.42,177.41,0.06]
[1755629318002,13.49489692,177.42,177.41,0.06]
[1755629318213,54.49489692,177.42,177.41,0.06]
[1755629320611,54.49489692,177.42,177.4,0.06]
[1755629320612,68.78049093,177.42,177.4,0.06]
[1755629320805,37.92430792,177.41,177.4,0.06]
[1755629321131,37.23430792,177.41,177.4,0.06]
[1755629321294,11.92430792,177.41,177.4,0.06]
[1755629322208,11.23430792,177.41,177.4,0.06]
[1755629322524,13.49502492,177.41,177.4,0.06]
[1755629323140,54.49502492,177.41,177.4,0.06]
[1755629323901,54.51502492,177.41,177.4,0.06]
[1755629324102,13.49502492,177.41,177.4,0.06]
[1755629324314,54.49502492,177.41,177.4,0.06]
[1755629324937,13.49502492,177.41,177.4,0.06]
[1755629325105,13.49502492,177.41,177.4,0.72]
[1755629325106,54.49502492,177.41,177.4,0.72]
[1755629326314,54.49502492,177.41,177.4,0.06]
[1755629326727,54.49502492,177.41,177.4,0.72]
[1755629327039,54.49502492,177.41,177.4,0.06]
[1755629330237,54.49502492,177.41,177.4,0.72]
[1755629330625,13.49502492,177.41,177.4,0.72]
[1755629330820,54.49502492,177.41,177.4,0.06]
[1755629331024,54.49502492,177.41,177.4,0.72]
[1755629332016,13.49502492,177.41,177.4,0.72]
[1755629332435,54.49502492,177.41,177.4,0.72]
[1755629332759,54.49502492,177.41,177.4,0.06]
[1755629333843,13.49502492,177.41,177.4,0.06]
[1755629334149,54.49502492,177.41,177.4,0.06]
[1755629336048,26.0,177.39,177.38,0.06]
[1755629336360,89.46861584,177.39,177.36,0.06]
[1755629336533,26.0,177.35,177.34,0.06]
[1755629336739,78.23430792,177.35,177.34,0.06]
[1755629337243,89.46861592,177.35,177.34,0.06]
[1755629339091,89.46861592,177.35,177.34,0.72]
[1755629339457,78.234308,177.35,177.34,0.06]
[1755629339680,89.46861592,177.35,177.34,0.72]
[1755629339854,89.46861592,177.35,177.34,0.06]
[1755629340652,89.46861592,177.35,177.34,0.72]
[1755629341465,89.46861592,177.35,177.34,0.06]
[1755629341775,90.15861592,177.35,177.34,0.06]
[1755629341962,90.15861592,177.35,177.15,40.64]
[1755629342291,26.0,177.31,177.21,11.89430792]
[1755629342588,26.0,177.31,177.24,11.23430792]
[1755629342589,52.23430792,177.3,177.24,11.23430792]
[1755629342794,11.23430792,177.28,177.25,0.66]
[1755629342959,26.0,177.25,177.22,0.66]
[1755629343156,11.23430792,177.23,177.22,0.66]
[1755629343557,26.0,177.23,177.22,0.66]
[1755629343978,26.0,177.26,177.22,11.89430792]
[1755629344190,26.0,177.25,177.23,11.93430792]
[1755629344372,26.0,177.25,177.24,0.7]
[1755629344688,11.23430792,177.29,177.24,11.93430792]
[1755629344886,41.02,177.3,177.28,0.06]
[1755629345207,78.25430792,177.3,177.28,0.06]
[1755629345584,52.25430792,177.3,177.28,0.06]
[1755629345891,37.23430792,177.29,177.28,0.06]
[1755629346072,11.23430792,177.29,177.28,0.06]
[1755629347282,22.46861592,177.29,177.28,0.06]
[1755629350325,11.234308,177.29,177.28,0.76]
[1755629350621,48.46861592,177.29,177.28,0.76]
[1755629350779,22.46861592,177.29,177.28,0.76]
[1755629351810,11.234308,177.29,177.28,0.76]
[1755629352117,22.46861592,177.29,177.28,0.76]
[1755629352808,22.46861592,177.29,177.28,0.06]
[1755629353110,22.46861592,177.29,177.28,0.76]